[Event "Titled Tuesday Blitz March 15 Late 2022"]
[White "Rastbod, Ali"]
[Black "Kubicka, Anna"]
[WhiteFideId "12567477"]
[BlackFideId "1152254"]
[WhiteElo "2200"]
[BlackElo "2000"]
[Result "1-0"]
[Round "10"]
[TimeControl "180+1"]
[Date "2022.03.15"]
[WhiteClock "0:00:43"]
[BlackClock "0:00:38"]

1. c4 {[%clk 0:03:00]}  e5 {[%clk 0:02:58]} 2. Nc3 {[%clk 0:03:00]}  Nc6 {[%clk 0:02:59]} 3. Nf3 {[%clk 0:03:00]}  d6 {[%clk 0:02:53]} 4. d4 {[%clk 0:03:00]}  exd4 {[%clk 0:02:50]} 5. Nxd4 {[%clk 0:03:00]}  Nxd4 {[%clk 0:02:48]} 6. Qxd4 {[%clk 0:03:01]}  Nf6 {[%clk 0:02:48]} 7. g3 {[%clk 0:03:01]}  Be7 {[%clk 0:02:43]} 8. Bg2 {[%clk 0:03:02]}  O-O {[%clk 0:02:43]} 9. O-O {[%clk 0:03:02]}  c6 {[%clk 0:02:41]} 10. b3 {[%clk 0:03:02]}  Be6 {[%clk 0:02:36]} 11. Bb2 {[%clk 0:03:02]}  Qd7 {[%clk 0:02:36]} 12. Rfd1 {[%clk 0:02:51]}  Rfd8 {[%clk 0:02:32]} 13. e4 {[%clk 0:02:37]}  Bh3 {[%clk 0:02:28]} 14. f3 {[%clk 0:02:30]}  Bxg2 {[%clk 0:02:27]} 15. Kxg2 {[%clk 0:02:31]}  h5 {[%clk 0:02:26]} 16. Ne2 {[%clk 0:02:27]}  h4 {[%clk 0:02:23]} 17. Nf4 {[%clk 0:02:26]}  Ne8 {[%clk 0:02:07]} 18. Qe3 {[%clk 0:01:34]}  Bf6 {[%clk 0:01:51]} 19. Bxf6 {[%clk 0:01:18]}  Nxf6 {[%clk 0:01:52]} 20. Rd3 {[%clk 0:01:16]}  Qe7 {[%clk 0:01:50]} 21. Rad1 {[%clk 0:01:13]}  Rd7 {[%clk 0:01:37]} 22. b4 {[%clk 0:01:03]}  b6 {[%clk 0:01:28]} 23. b5 {[%clk 0:01:02]}  cxb5 {[%clk 0:01:20]} 24. cxb5 {[%clk 0:01:03]}  Rc8 {[%clk 0:01:20]} 25. Nd5 {[%clk 0:00:59]}  Nxd5 {[%clk 0:01:18]} 26. Rxd5 {[%clk 0:01:00]}  Rc2+ {[%clk 0:01:13]} 27. R1d2 {[%clk 0:01:01]}  Rdc7 {[%clk 0:01:11]} 28. Qf2 {[%clk 0:00:53]}  Qe6 {[%clk 0:00:40]} 29. Rxc2 {[%clk 0:00:48]}  h3+ {[%clk 0:00:40]} 30. Kg1 {[%clk 0:00:47]}  Rxc2 {[%clk 0:00:37]} 31. Qxc2 {[%clk 0:00:48]}  Qf6 {[%clk 0:00:38]} 32. Qc8+ {[%clk 0:00:43]} 1-0


[Site "https://www.chess.com"]

[Event "Titled Tuesday Blitz March 15 Late 2022"]
[White "Riehle, Marco"]
[Black "Matinian, Nikita"]
[WhiteFideId "12904392"]
[BlackFideId "24129100"]
[WhiteElo "2462"]
[BlackElo "2422"]
[Result "1-0"]
[Round "10"]
[TimeControl "180+1"]
[Date "2022.03.15"]
[WhiteClock "0:00:18"]
[BlackClock "0:00:01"]

1. e4 {[%clk 0:03:00]}  d6 {[%clk 0:02:59]} 2. d4 {[%clk 0:03:00]}  g6 {[%clk 0:03:00]} 3. c4 {[%clk 0:03:00]}  a6 {[%clk 0:03:00]} 4. Nc3 {[%clk 0:03:00]}  Bg7 {[%clk 0:03:00]} 5. f3 {[%clk 0:03:00]}  Nc6 {[%clk 0:02:59]} 6. Be3 {[%clk 0:03:00]}  e5 {[%clk 0:02:57]} 7. d5 {[%clk 0:03:00]}  Nd4 {[%clk 0:02:57]} 8. Nge2 {[%clk 0:03:00]}  c5 {[%clk 0:02:56]} 9. dxc6 {[%clk 0:03:00]}  Nxc6 {[%clk 0:02:55]} 10. Qd2 {[%clk 0:02:59]}  Be6 {[%clk 0:02:54]} 11. O-O-O {[%clk 0:02:56]}  Bxc4 {[%clk 0:02:50]} 12. g4 {[%clk 0:02:55]}  Rc8 {[%clk 0:02:45]} 13. Kb1 {[%clk 0:02:55]}  Nge7 {[%clk 0:02:36]} 14. h4 {[%clk 0:02:52]}  Qa5 {[%clk 0:02:33]} 15. h5 {[%clk 0:02:47]}  Nb4 {[%clk 0:02:32]} 16. Nc1 {[%clk 0:02:38]}  Bxf1 {[%clk 0:02:20]} 17. Rdxf1 {[%clk 0:02:29]}  d5 {[%clk 0:02:09]} 18. h6 {[%clk 0:02:26]}  Bf8 {[%clk 0:02:08]} 19. exd5 {[%clk 0:02:23]}  Nexd5 {[%clk 0:02:06]} 20. Rd1 {[%clk 0:02:18]}  Rd8 {[%clk 0:01:32]} 21. Nxd5 {[%clk 0:02:18]}  Rxd5 {[%clk 0:01:30]} 22. Qc3 {[%clk 0:02:18]}  Nc6 {[%clk 0:01:22]} 23. Qb3 {[%clk 0:02:01]}  Rxd1 {[%clk 0:01:18]} 24. Rxd1 {[%clk 0:02:02]}  Qb5 {[%clk 0:01:16]} 25. Qxb5 {[%clk 0:01:48]}  axb5 {[%clk 0:01:17]} 26. Rd5 {[%clk 0:01:48]}  b4 {[%clk 0:00:57]} 27. Nd3 {[%clk 0:01:39]}  f6 {[%clk 0:00:27]} 28. Rb5 {[%clk 0:01:38]}  Nd8 {[%clk 0:00:28]} 29. g5 {[%clk 0:01:32]}  Be7 {[%clk 0:00:25]} 30. gxf6 {[%clk 0:01:21]}  Bxf6 {[%clk 0:00:26]} 31. Nxb4 {[%clk 0:01:21]}  Rf8 {[%clk 0:00:24]} 32. Nd5 {[%clk 0:01:19]}  Bh4 {[%clk 0:00:24]} 33. f4 {[%clk 0:01:12]}  exf4 {[%clk 0:00:17]} 34. Bxf4 {[%clk 0:01:13]}  g5 {[%clk 0:00:17]} 35. Bc7 {[%clk 0:01:07]}  Rf1+ {[%clk 0:00:16]} 36. Kc2 {[%clk 0:01:06]}  Rf2+ {[%clk 0:00:11]} 37. Kd3 {[%clk 0:01:04]}  g4 {[%clk 0:00:06]} 38. Rb4 {[%clk 0:01:01]}  Rf3+ {[%clk 0:00:05]} 39. Ke2 {[%clk 0:00:57]}  Rf2+ {[%clk 0:00:05]} 40. Ke3 {[%clk 0:00:57]}  Rf3+ {[%clk 0:00:05]} 41. Ke4 {[%clk 0:00:57]}  Ne6 {[%clk 0:00:04]} 42. Be5 {[%clk 0:00:40]}  Rf1 {[%clk 0:00:02]} 43. Ke3 {[%clk 0:00:24]}  g3 {[%clk 0:00:03]} 44. Rxh4 {[%clk 0:00:23]}  g2 {[%clk 0:00:03]} 45. Bh2 {[%clk 0:00:23]}  g1=Q+ {[%clk 0:00:03]} 46. Bxg1 {[%clk 0:00:23]}  Rxg1 {[%clk 0:00:03]} 47. Nf6+ {[%clk 0:00:20]}  Kf7 {[%clk 0:00:04]} 48. Nxh7 {[%clk 0:00:21]}  Rg3+ {[%clk 0:00:02]} 49. Kf2 {[%clk 0:00:21]}  Rd3 {[%clk 0:00:02]} 50. Rb4 {[%clk 0:00:18]}  Kg6 {[%clk 0:00:01]} 51. Rxb7 {[%clk 0:00:18]} 1-0


[Site "https://www.chess.com"]

[Event "Titled Tuesday Blitz March 15 Late 2022"]
[White "Risteski, Emil"]
[Black "Rustemov, Alexander"]
[WhiteFideId "15005267"]
[BlackFideId "4119002"]
[WhiteElo "2070"]
[BlackElo "2757"]
[Result "0-1"]
[Round "10"]
[TimeControl "180+1"]
[Date "2022.03.15"]
[WhiteClock "0:00:05"]
[BlackClock "0:00:06"]

1. e4 {[%clk 0:03:00]}  e6 {[%clk 0:02:59]} 2. d3 {[%clk 0:03:00]}  d5 {[%clk 0:02:57]} 3. Nd2 {[%clk 0:02:59]}  c5 {[%clk 0:02:58]} 4. Ngf3 {[%clk 0:02:58]}  Nc6 {[%clk 0:02:57]} 5. g3 {[%clk 0:02:58]}  g6 {[%clk 0:02:58]} 6. Bg2 {[%clk 0:02:58]}  Bg7 {[%clk 0:02:58]} 7. O-O {[%clk 0:02:58]}  Nge7 {[%clk 0:02:59]} 8. Re1 {[%clk 0:02:58]}  b6 {[%clk 0:02:59]} 9. c3 {[%clk 0:02:58]}  Qc7 {[%clk 0:02:57]} 10. h4 {[%clk 0:02:53]}  h6 {[%clk 0:02:53]} 11. Nf1 {[%clk 0:02:52]}  d4 {[%clk 0:02:38]} 12. cxd4 {[%clk 0:02:47]}  Nxd4 {[%clk 0:02:38]} 13. Nxd4 {[%clk 0:02:45]}  Bxd4 {[%clk 0:02:38]} 14. Be3 {[%clk 0:02:45]}  Nc6 {[%clk 0:02:37]} 15. Rb1 {[%clk 0:02:26]}  e5 {[%clk 0:02:32]} 16. Bd2 {[%clk 0:02:13]}  Kf8 {[%clk 0:02:08]} 17. Ne3 {[%clk 0:02:11]}  Bxe3 {[%clk 0:01:57]} 18. Bxe3 {[%clk 0:02:09]}  Kg7 {[%clk 0:01:53]} 19. a3 {[%clk 0:02:08]}  a5 {[%clk 0:01:50]} 20. Qa4 {[%clk 0:01:46]}  Ba6 {[%clk 0:01:40]} 21. Red1 {[%clk 0:01:39]}  Rhd8 {[%clk 0:01:36]} 22. Bf1 {[%clk 0:01:24]}  h5 {[%clk 0:01:34]} 23. Qc2 {[%clk 0:01:17]}  Qd6 {[%clk 0:01:34]} 24. Qc3 {[%clk 0:01:14]}  Bc8 {[%clk 0:01:28]} 25. f3 {[%clk 0:01:03]}  Be6 {[%clk 0:01:27]} 26. Rbc1 {[%clk 0:00:59]}  Rac8 {[%clk 0:01:24]} 27. f4 {[%clk 0:00:50]}  f6 {[%clk 0:01:20]} 28. Rd2 {[%clk 0:00:47]}  Nd4 {[%clk 0:01:17]} 29. Rf2 {[%clk 0:00:45]}  Bg4 {[%clk 0:01:13]} 30. fxe5 {[%clk 0:00:36]}  Qxe5 {[%clk 0:01:13]} 31. Bf4 {[%clk 0:00:33]}  Qe6 {[%clk 0:01:11]} 32. Kh1 {[%clk 0:00:23]}  Rd7 {[%clk 0:01:09]} 33. Re1 {[%clk 0:00:22]}  Rcd8 {[%clk 0:01:07]} 34. e5 {[%clk 0:00:22]}  f5 {[%clk 0:01:05]} 35. Bg5 {[%clk 0:00:21]}  Bf3+ {[%clk 0:00:55]} 36. Kh2 {[%clk 0:00:19]}  Re8 {[%clk 0:00:50]} 37. Bf6+ {[%clk 0:00:19]}  Kh7 {[%clk 0:00:48]} 38. b4 {[%clk 0:00:20]}  f4 {[%clk 0:00:37]} 39. Bh3 {[%clk 0:00:13]}  Bg4 {[%clk 0:00:37]} 40. Bg2 {[%clk 0:00:13]}  f3 {[%clk 0:00:29]} 41. Bf1 {[%clk 0:00:13]}  axb4 {[%clk 0:00:25]} 42. axb4 {[%clk 0:00:13]}  Ra8 {[%clk 0:00:26]} 43. bxc5 {[%clk 0:00:13]}  bxc5 {[%clk 0:00:27]} 44. Qxc5 {[%clk 0:00:13]}  Ne2 {[%clk 0:00:20]} 45. Bxe2 {[%clk 0:00:12]}  fxe2 {[%clk 0:00:20]} 46. Qe3 {[%clk 0:00:12]}  Ra3 {[%clk 0:00:18]} 47. Qc5 {[%clk 0:00:08]}  Raxd3 {[%clk 0:00:17]} 48. Qf8 {[%clk 0:00:08]}  Qg8 {[%clk 0:00:16]} 49. Qxg8+ {[%clk 0:00:08]}  Kxg8 {[%clk 0:00:15]} 50. Rg2 {[%clk 0:00:08]}  Rd1 {[%clk 0:00:14]} 51. e6 {[%clk 0:00:07]}  R7d6 {[%clk 0:00:11]} 52. Rgg1 {[%clk 0:00:07]}  Rxe6 {[%clk 0:00:11]} 53. Kg2 {[%clk 0:00:05]}  Rxf6 {[%clk 0:00:10]} 54. Kh1 {[%clk 0:00:02]}  Rxe1 {[%clk 0:00:09]} 55. Rxe1 {[%clk 0:00:02]}  Rf1+ {[%clk 0:00:10]} 56. Kh2 {[%clk 0:00:03]}  Rxe1 {[%clk 0:00:10]} 57. Kg2 {[%clk 0:00:03]}  Rg1+ {[%clk 0:00:10]} 58. Kh2 {[%clk 0:00:04]}  Bf3 {[%clk 0:00:06]} 59. g4 {[%clk 0:00:04]}  Rh1+ {[%clk 0:00:04]} 60. Kg3 {[%clk 0:00:04]}  e1=Q+ {[%clk 0:00:05]} 61. Kf4 {[%clk 0:00:04]}  Qe4+ {[%clk 0:00:04]} 62. Kg5 {[%clk 0:00:05]}  Qxg4+ {[%clk 0:00:04]} 63. Kh6 {[%clk 0:00:06]}  Qf4+ {[%clk 0:00:05]} 64. Kxg6 {[%clk 0:00:06]}  Be4+ {[%clk 0:00:05]} 65. Kxh5 {[%clk 0:00:04]}  Qf5+ {[%clk 0:00:06]} 66. Kh6 {[%clk 0:00:05]}  Qg6# {[%clk 0:00:06]} 0-1


[Site "https://www.chess.com"]

[Event "Titled Tuesday Blitz March 15 Late 2022"]
[White "Sadilek, Peter"]
[Black "Hess, Max"]
[WhiteFideId "1616439"]
[BlackFideId "24656666"]
[WhiteElo "2145"]
[BlackElo "2276"]
[Result "0-1"]
[Round "10"]
[TimeControl "180+1"]
[Date "2022.03.16"]
[WhiteClock "0:00:06"]
[BlackClock "0:00:22"]

1. Nf3 {[%clk 0:02:57]}  d5 {[%clk 0:02:59]} 2. d4 {[%clk 0:02:57]}  Nf6 {[%clk 0:02:59]} 3. c4 {[%clk 0:02:57]}  e6 {[%clk 0:02:58]} 4. g3 {[%clk 0:02:57]}  dxc4 {[%clk 0:02:58]} 5. Bg2 {[%clk 0:02:57]}  c5 {[%clk 0:02:58]} 6. O-O {[%clk 0:02:57]}  Nc6 {[%clk 0:02:58]} 7. dxc5 {[%clk 0:02:55]}  Qxd1 {[%clk 0:02:57]} 8. Rxd1 {[%clk 0:02:56]}  Bxc5 {[%clk 0:02:57]} 9. Nbd2 {[%clk 0:02:56]}  c3 {[%clk 0:02:57]} 10. bxc3 {[%clk 0:02:56]}  O-O {[%clk 0:02:57]} 11. Nb3 {[%clk 0:02:57]}  Be7 {[%clk 0:02:52]} 12. c4 {[%clk 0:02:58]}  Bd7 {[%clk 0:02:49]} 13. Bb2 {[%clk 0:02:57]}  Rfc8 {[%clk 0:02:46]} 14. Bxf6 {[%clk 0:02:50]}  Bxf6 {[%clk 0:02:47]} 15. Rxd7 {[%clk 0:02:50]}  Bxa1 {[%clk 0:02:46]} 16. Nxa1 {[%clk 0:02:51]}  Rd8 {[%clk 0:02:46]} 17. Rxd8+ {[%clk 0:02:46]}  Rxd8 {[%clk 0:02:47]} 18. Nb3 {[%clk 0:02:40]}  Rd1+ {[%clk 0:02:47]} 19. Bf1 {[%clk 0:02:40]}  Rb1 {[%clk 0:02:48]} 20. Nfd2 {[%clk 0:02:38]}  Rb2 {[%clk 0:02:25]} 21. Bg2 {[%clk 0:02:04]}  Rxa2 {[%clk 0:02:22]} 22. Bxc6 {[%clk 0:02:04]}  bxc6 {[%clk 0:02:23]} 23. Ne4 {[%clk 0:01:45]}  a5 {[%clk 0:02:14]} 24. Nec5 {[%clk 0:01:45]}  a4 {[%clk 0:02:13]} 25. Nd4 {[%clk 0:01:46]}  a3 {[%clk 0:02:08]} 26. Nxc6 {[%clk 0:01:19]}  Rb2 {[%clk 0:02:04]} 27. Na5 {[%clk 0:01:08]}  a2 {[%clk 0:01:56]} 28. Nab3 {[%clk 0:01:08]}  Rxe2 {[%clk 0:01:45]} 29. Kg2 {[%clk 0:00:43]}  Re1 {[%clk 0:01:37]} 30. Nd3 {[%clk 0:00:39]}  Rb1 {[%clk 0:01:24]} 31. Ndc5 {[%clk 0:00:33]}  a1=Q {[%clk 0:01:22]} 32. Nxa1 {[%clk 0:00:33]}  Rxa1 {[%clk 0:01:22]} 33. Ne4 {[%clk 0:00:25]}  Rc1 {[%clk 0:01:19]} 34. c5 {[%clk 0:00:21]}  f5 {[%clk 0:01:18]} 35. Ng5 {[%clk 0:00:20]}  e5 {[%clk 0:01:13]} 36. g4 {[%clk 0:00:10]}  fxg4 {[%clk 0:00:43]} 37. Kg3 {[%clk 0:00:11]}  Rxc5 {[%clk 0:00:41]} 38. Kxg4 {[%clk 0:00:11]}  h6 {[%clk 0:00:39]} 39. Ne4 {[%clk 0:00:10]}  Ra5 {[%clk 0:00:36]} 40. Kf5 {[%clk 0:00:09]}  Kf7 {[%clk 0:00:33]} 41. h4 {[%clk 0:00:08]}  g6+ {[%clk 0:00:31]} 42. Kg4 {[%clk 0:00:09]}  Ra4 {[%clk 0:00:25]} 43. f3 {[%clk 0:00:09]}  Rxe4+ {[%clk 0:00:20]} 44. fxe4 {[%clk 0:00:09]}  Kf6 {[%clk 0:00:19]} 45. h5 {[%clk 0:00:03]}  gxh5+ {[%clk 0:00:18]} 46. Kxh5 {[%clk 0:00:04]}  Kg7 {[%clk 0:00:19]} 47. Kg4 {[%clk 0:00:03]}  Kg6 {[%clk 0:00:19]} 48. Kh4 {[%clk 0:00:04]}  h5 {[%clk 0:00:20]} 49. Kg3 {[%clk 0:00:03]}  Kg5 {[%clk 0:00:21]} 50. Kf3 {[%clk 0:00:03]}  h4 {[%clk 0:00:20]} 51. Kg2 {[%clk 0:00:02]}  Kg4 {[%clk 0:00:20]} 52. Kh2 {[%clk 0:00:03]}  Kf4 {[%clk 0:00:20]} 53. Kh3 {[%clk 0:00:04]}  Kxe4 {[%clk 0:00:21]} 54. Kxh4 {[%clk 0:00:04]}  Kd3 {[%clk 0:00:22]} 55. Kg3 {[%clk 0:00:05]}  e4 {[%clk 0:00:22]} 56. Kf2 {[%clk 0:00:06]}  Kd2 {[%clk 0:00:22]} 0-1


[Site "https://www.chess.com"]

[Event "Titled Tuesday Blitz March 15 Late 2022"]
[White "Sanchez Alvares, Kelvin Antonio"]
[Black "Badelka, Olga"]
[WhiteFideId "3906680"]
[BlackFideId "13509926"]
[WhiteElo "2193"]
[BlackElo "2165"]
[Result "1-0"]
[Round "10"]
[TimeControl "180+1"]
[Date "2022.03.15"]
[WhiteClock "0:00:50"]
[BlackClock "0:00:04"]

1. e4 {[%clk 0:02:50]}  c5 {[%clk 0:02:59]} 2. Nf3 {[%clk 0:02:48]}  Nc6 {[%clk 0:02:59]} 3. d4 {[%clk 0:02:42]}  cxd4 {[%clk 0:02:58]} 4. Nxd4 {[%clk 0:02:42]}  e5 {[%clk 0:02:59]} 5. Nb5 {[%clk 0:02:42]}  d6 {[%clk 0:02:59]} 6. c4 {[%clk 0:02:41]}  Be7 {[%clk 0:02:53]} 7. N1c3 {[%clk 0:02:41]}  a6 {[%clk 0:02:53]} 8. Na3 {[%clk 0:02:41]}  f5 {[%clk 0:02:54]} 9. g3 {[%clk 0:02:40]}  Nf6 {[%clk 0:02:49]} 10. Bg2 {[%clk 0:02:40]}  O-O {[%clk 0:02:48]} 11. O-O {[%clk 0:02:39]}  Be6 {[%clk 0:02:23]} 12. exf5 {[%clk 0:02:37]}  Bxf5 {[%clk 0:02:24]} 13. Nc2 {[%clk 0:02:37]}  Kh8 {[%clk 0:02:22]} 14. Ne3 {[%clk 0:02:36]}  Be6 {[%clk 0:02:22]} 15. Ncd5 {[%clk 0:02:34]}  Nd4 {[%clk 0:02:18]} 16. Nxf6 {[%clk 0:02:27]}  gxf6 {[%clk 0:02:18]} 17. Bxb7 {[%clk 0:02:26]}  f5 {[%clk 0:02:16]} 18. f4 {[%clk 0:02:23]}  Rb8 {[%clk 0:02:13]} 19. Bg2 {[%clk 0:02:19]}  Qb6 {[%clk 0:02:09]} 20. Kh1 {[%clk 0:02:17]}  Bf6 {[%clk 0:02:01]} 21. Rb1 {[%clk 0:02:11]}  Qa5 {[%clk 0:01:42]} 22. a3 {[%clk 0:02:08]}  Qc7 {[%clk 0:01:03]} 23. b3 {[%clk 0:01:53]}  Qa7 {[%clk 0:00:42]} 24. b4 {[%clk 0:01:46]}  Bd7 {[%clk 0:00:40]} 25. Bb2 {[%clk 0:01:42]}  Bc6 {[%clk 0:00:36]} 26. Nd5 {[%clk 0:01:39]}  Bxd5 {[%clk 0:00:35]} 27. Bxd5 {[%clk 0:01:38]}  a5 {[%clk 0:00:34]} 28. Bc3 {[%clk 0:01:33]}  axb4 {[%clk 0:00:34]} 29. Bxb4 {[%clk 0:01:31]}  Rfd8 {[%clk 0:00:21]} 30. Qh5 {[%clk 0:01:16]}  e4 {[%clk 0:00:19]} 31. Rbd1 {[%clk 0:01:04]}  Bg7 {[%clk 0:00:19]} 32. Rxd4 {[%clk 0:01:01]}  Qxd4 {[%clk 0:00:19]} 33. Qxf5 {[%clk 0:01:00]}  e3 {[%clk 0:00:19]} 34. Be4 {[%clk 0:00:58]}  Kg8 {[%clk 0:00:15]} 35. Qxh7+ {[%clk 0:00:57]}  Kf8 {[%clk 0:00:14]} 36. Bd5 {[%clk 0:00:54]}  e2 {[%clk 0:00:11]} 37. Re1 {[%clk 0:00:53]}  Qf2 {[%clk 0:00:04]} 38. Qg8+ {[%clk 0:00:50]} 1-0


[Site "https://www.chess.com"]

[Event "Titled Tuesday Blitz March 15 Late 2022"]
[White "Sarana, Alexey"]
[Black "Barp, Alberto"]
[WhiteFideId "24133795"]
[BlackFideId "872555"]
[WhiteElo "2666"]
[BlackElo "2229"]
[Result "1-0"]
[Round "10"]
[TimeControl "180+1"]
[Date "2022.03.15"]
[WhiteClock "0:01:24"]
[BlackClock "0:00:55"]

1. d4 {[%clk 0:02:41]}  Nf6 {[%clk 0:02:58]} 2. c4 {[%clk 0:02:42]}  e6 {[%clk 0:02:58]} 3. Nc3 {[%clk 0:02:42]}  Bb4 {[%clk 0:02:52]} 4. Qc2 {[%clk 0:02:41]}  d5 {[%clk 0:02:51]} 5. cxd5 {[%clk 0:02:40]}  exd5 {[%clk 0:02:52]} 6. Bg5 {[%clk 0:02:40]}  O-O {[%clk 0:02:50]} 7. e3 {[%clk 0:02:37]}  Re8 {[%clk 0:02:51]} 8. Bd3 {[%clk 0:02:37]}  c5 {[%clk 0:02:51]} 9. Bxh7+ {[%clk 0:02:34]}  Kh8 {[%clk 0:02:51]} 10. Nf3 {[%clk 0:02:26]}  Nc6 {[%clk 0:02:35]} 11. O-O {[%clk 0:02:12]}  Bxc3 {[%clk 0:02:22]} 12. bxc3 {[%clk 0:02:11]}  Qd6 {[%clk 0:02:10]} 13. dxc5 {[%clk 0:02:07]}  Qxc5 {[%clk 0:01:55]} 14. Bxf6 {[%clk 0:02:07]}  gxf6 {[%clk 0:01:56]} 15. Nd4 {[%clk 0:02:06]}  Kg7 {[%clk 0:01:47]} 16. Bd3 {[%clk 0:02:04]}  Ne5 {[%clk 0:01:45]} 17. Bf5 {[%clk 0:02:03]}  Be6 {[%clk 0:01:43]} 18. f4 {[%clk 0:02:02]}  Nc4 {[%clk 0:01:42]} 19. Rf3 {[%clk 0:02:02]}  Kf8 {[%clk 0:00:55]} 20. Bxe6 {[%clk 0:01:25]}  fxe6 {[%clk 0:00:55]} 21. Qh7 {[%clk 0:01:24]} 1-0


[Site "https://www.chess.com"]

[Event "Titled Tuesday Blitz March 15 Late 2022"]
[White "Sinitsina, Anastassia"]
[Black "Svicevic, Rastko"]
[WhiteFideId "4504640"]
[BlackFideId "916315"]
[WhiteElo "2144"]
[BlackElo "2132"]
[Result "1-0"]
[Round "10"]
[TimeControl "180+1"]
[Date "2022.03.16"]
[WhiteClock "0:00:13"]
[BlackClock "0:00:02"]

1. Nf3 {[%clk 0:03:00]}  c6 {[%clk 0:02:57]} 2. g3 {[%clk 0:03:01]}  d5 {[%clk 0:02:57]} 3. Bg2 {[%clk 0:03:01]}  g6 {[%clk 0:02:55]} 4. O-O {[%clk 0:03:02]}  Bg7 {[%clk 0:02:56]} 5. d3 {[%clk 0:03:02]}  e5 {[%clk 0:02:56]} 6. e4 {[%clk 0:03:02]}  dxe4 {[%clk 0:02:55]} 7. dxe4 {[%clk 0:03:02]}  Qc7 {[%clk 0:02:54]} 8. Qe2 {[%clk 0:03:01]}  Ne7 {[%clk 0:02:53]} 9. Nbd2 {[%clk 0:03:01]}  O-O {[%clk 0:02:51]} 10. Nc4 {[%clk 0:03:00]}  Nd7 {[%clk 0:02:51]} 11. Re1 {[%clk 0:02:54]}  Nb6 {[%clk 0:02:50]} 12. Be3 {[%clk 0:02:49]}  Be6 {[%clk 0:02:49]} 13. Nfd2 {[%clk 0:02:42]}  Nxc4 {[%clk 0:02:35]} 14. Nxc4 {[%clk 0:02:41]}  b5 {[%clk 0:02:35]} 15. Nd2 {[%clk 0:02:40]}  Rfd8 {[%clk 0:02:17]} 16. Bc5 {[%clk 0:02:30]}  Nc8 {[%clk 0:02:11]} 17. Nb3 {[%clk 0:02:27]}  Nb6 {[%clk 0:02:02]} 18. Rad1 {[%clk 0:02:21]}  Nc4 {[%clk 0:01:57]} 19. c3 {[%clk 0:02:14]}  a5 {[%clk 0:01:56]} 20. Be3 {[%clk 0:02:10]}  f6 {[%clk 0:01:38]} 21. Nc5 {[%clk 0:02:07]}  Bf7 {[%clk 0:01:39]} 22. Bc1 {[%clk 0:01:49]}  Bf8 {[%clk 0:01:36]} 23. Nd3 {[%clk 0:01:44]}  Nb6 {[%clk 0:01:30]} 24. b3 {[%clk 0:01:39]}  c5 {[%clk 0:01:29]} 25. Be3 {[%clk 0:01:24]}  c4 {[%clk 0:01:27]} 26. Nb2 {[%clk 0:01:21]}  Rab8 {[%clk 0:01:06]} 27. Rxd8 {[%clk 0:01:08]}  Qxd8 {[%clk 0:00:58]} 28. Rd1 {[%clk 0:01:09]}  Qc7 {[%clk 0:00:57]} 29. Qc2 {[%clk 0:00:56]}  cxb3 {[%clk 0:00:48]} 30. axb3 {[%clk 0:00:56]}  Rc8 {[%clk 0:00:49]} 31. h4 {[%clk 0:00:53]}  Be6 {[%clk 0:00:22]} 32. Bf1 {[%clk 0:00:49]}  b4 {[%clk 0:00:19]} 33. c4 {[%clk 0:00:46]}  Nd7 {[%clk 0:00:19]} 34. Na4 {[%clk 0:00:43]}  Nc5 {[%clk 0:00:18]} 35. Bxc5 {[%clk 0:00:41]}  Bxc5 {[%clk 0:00:19]} 36. Kh2 {[%clk 0:00:33]}  Bd4 {[%clk 0:00:19]} 37. Bh3 {[%clk 0:00:31]}  Bxh3 {[%clk 0:00:17]} 38. Kxh3 {[%clk 0:00:31]}  Qa7 {[%clk 0:00:15]} 39. Kg2 {[%clk 0:00:30]}  Qb7 {[%clk 0:00:14]} 40. f3 {[%clk 0:00:29]}  f5 {[%clk 0:00:09]} 41. exf5 {[%clk 0:00:28]}  Rf8 {[%clk 0:00:09]} 42. Qe4 {[%clk 0:00:13]}  Qxe4 {[%clk 0:00:08]} 43. fxe4 {[%clk 0:00:13]}  gxf5 {[%clk 0:00:08]} 44. exf5 {[%clk 0:00:13]}  Rxf5 {[%clk 0:00:09]} 45. Rd2 {[%clk 0:00:13]}  e4 {[%clk 0:00:06]} 46. Rc2 {[%clk 0:00:13]}  Kf7 {[%clk 0:00:02]} 47. c5 {[%clk 0:00:13]} 1-0


[Site "https://www.chess.com"]

[Event "Titled Tuesday Blitz March 15 Late 2022"]
[White "Solon, Nathan"]
[Black "Kovanova, Baira"]
[WhiteFideId "2017229"]
[BlackFideId "4164083"]
[WhiteElo "2589"]
[BlackElo "2190"]
[Result "0-1"]
[Round "10"]
[TimeControl "180+1"]
[Date "2022.03.15"]
[WhiteClock "0:01:04"]
[BlackClock "0:01:01"]

1. d4 {[%clk 0:03:00]}  Nf6 {[%clk 0:02:59]} 2. c4 {[%clk 0:03:01]}  e6 {[%clk 0:02:59]} 3. g3 {[%clk 0:03:01]}  c5 {[%clk 0:02:55]} 4. d5 {[%clk 0:03:01]}  exd5 {[%clk 0:02:56]} 5. cxd5 {[%clk 0:03:01]}  d6 {[%clk 0:02:56]} 6. Bg2 {[%clk 0:03:02]}  g6 {[%clk 0:02:56]} 7. Nc3 {[%clk 0:03:02]}  Bg7 {[%clk 0:02:57]} 8. Nf3 {[%clk 0:03:02]}  O-O {[%clk 0:02:57]} 9. O-O {[%clk 0:03:02]}  Re8 {[%clk 0:02:57]} 10. Bf4 {[%clk 0:03:02]}  a6 {[%clk 0:02:55]} 11. a4 {[%clk 0:03:01]}  Nh5 {[%clk 0:02:54]} 12. Bg5 {[%clk 0:02:58]}  Qc7 {[%clk 0:02:54]} 13. Qd2 {[%clk 0:02:42]}  Nd7 {[%clk 0:02:54]} 14. e4 {[%clk 0:02:34]}  Nhf6 {[%clk 0:02:49]} 15. Rfe1 {[%clk 0:02:33]}  Ng4 {[%clk 0:02:35]} 16. Qc2 {[%clk 0:02:28]}  Nde5 {[%clk 0:02:31]} 17. Nd2 {[%clk 0:02:23]}  h6 {[%clk 0:02:29]} 18. Bf4 {[%clk 0:02:18]}  g5 {[%clk 0:02:29]} 19. Bxe5 {[%clk 0:02:17]}  Nxe5 {[%clk 0:02:28]} 20. Nd1 {[%clk 0:02:00]}  Bd7 {[%clk 0:02:14]} 21. Ne3 {[%clk 0:01:59]}  b5 {[%clk 0:02:14]} 22. axb5 {[%clk 0:01:59]}  axb5 {[%clk 0:02:15]} 23. Kh1 {[%clk 0:01:52]}  c4 {[%clk 0:02:13]} 24. Bf1 {[%clk 0:01:32]}  Qb6 {[%clk 0:02:08]} 25. Kg2 {[%clk 0:01:10]}  Qd4 {[%clk 0:02:05]} 26. Nf5 {[%clk 0:01:06]}  Bxf5 {[%clk 0:02:04]} 27. exf5 {[%clk 0:01:07]}  Rxa1 {[%clk 0:01:39]} 28. Rxa1 {[%clk 0:01:07]}  Qxd5+ {[%clk 0:01:30]} 29. f3 {[%clk 0:01:07]}  g4 {[%clk 0:01:25]} 30. Be2 {[%clk 0:01:07]}  Nd3 {[%clk 0:01:12]} 31. Ne4 {[%clk 0:01:05]}  Rxe4 {[%clk 0:01:01]} 32. fxe4 {[%clk 0:01:04]}  Qxe4+ {[%clk 0:01:01]} 0-1


[Site "https://www.chess.com"]